[Event "Titled Tuesday Blitz March 14 Early 2023"]
[White "Salinas Herrera, Pablo"]
[Black "Reprintsev, Alexander"]
[WhiteFideId "3407128"]
[BlackFideId "14100541"]
[WhiteElo "2550"]
[BlackElo "2229"]
[Result "1-0"]
[Round "10"]
[TimeControl "180+2"]
[Date "2023.03.14"]
[WhiteClock "0:00:40"]
[BlackClock "0:00:47"]

1. d4 {[%clk 0:03:00]}  d5 {[%clk 0:02:59]} 2. Nf3 {[%clk 0:03:00]}  Nf6 {[%clk 0:02:56]} 3. Bf4 {[%clk 0:03:00]}  e6 {[%clk 0:02:55]} 4. e3 {[%clk 0:03:00]}  Bd6 {[%clk 0:02:55]} 5. Nbd2 {[%clk 0:03:01]}  Bxf4 {[%clk 0:02:54]} 6. exf4 {[%clk 0:03:01]}  Qd6 {[%clk 0:02:53]} 7. g3 {[%clk 0:03:01]}  c5 {[%clk 0:02:53]} 8. dxc5 {[%clk 0:03:01]}  Qxc5 {[%clk 0:02:54]} 9. Bd3 {[%clk 0:03:01]}  Nc6 {[%clk 0:02:53]} 10. c3 {[%clk 0:03:01]}  Bd7 {[%clk 0:02:42]} 11. O-O {[%clk 0:03:02]}  Rc8 {[%clk 0:02:41]} 12. Re1 {[%clk 0:03:02]}  O-O {[%clk 0:02:40]} 13. Qe2 {[%clk 0:02:59]}  Rfd8 {[%clk 0:02:39]} 14. Rad1 {[%clk 0:02:59]}  a6 {[%clk 0:02:39]} 15. Nb3 {[%clk 0:02:56]}  Qf8 {[%clk 0:02:38]} 16. Bb1 {[%clk 0:02:55]}  b5 {[%clk 0:02:38]} 17. Ne5 {[%clk 0:02:41]}  Be8 {[%clk 0:02:37]} 18. g4 {[%clk 0:02:40]}  g6 {[%clk 0:02:34]} 19. g5 {[%clk 0:02:33]}  Nh5 {[%clk 0:02:31]} 20. Ng4 {[%clk 0:02:33]}  Kh8 {[%clk 0:02:26]} 21. Nd4 {[%clk 0:02:30]}  Nxd4 {[%clk 0:02:14]} 22. Rxd4 {[%clk 0:02:28]}  Qd6 {[%clk 0:02:14]} 23. Bc2 {[%clk 0:02:19]}  Nxf4 {[%clk 0:02:00]} 24. Qe3 {[%clk 0:02:19]}  Nh5 {[%clk 0:01:59]} 25. Bd1 {[%clk 0:02:18]}  Rc4 {[%clk 0:01:58]} 26. Ne5 {[%clk 0:02:17]}  Rxd4 {[%clk 0:01:53]} 27. Qxd4 {[%clk 0:02:17]}  Ng7 {[%clk 0:01:52]} 28. Ng4 {[%clk 0:02:14]}  Rc8 {[%clk 0:01:47]} 29. Be2 {[%clk 0:01:49]}  Qe7 {[%clk 0:01:42]} 30. h4 {[%clk 0:01:46]}  a5 {[%clk 0:01:40]} 31. Bd3 {[%clk 0:01:43]}  b4 {[%clk 0:01:39]} 32. Nh6 {[%clk 0:01:31]}  bxc3 {[%clk 0:01:36]} 33. bxc3 {[%clk 0:01:31]}  Qc5 {[%clk 0:01:30]} 34. Rb1 {[%clk 0:01:20]}  Qxd4 {[%clk 0:01:28]} 35. cxd4 {[%clk 0:01:21]}  Nf5 {[%clk 0:01:29]} 36. Bxf5 {[%clk 0:01:20]}  gxf5 {[%clk 0:01:28]} 37. Rb7 {[%clk 0:01:12]}  Kg7 {[%clk 0:01:28]} 38. Ra7 {[%clk 0:01:12]}  Rc4 {[%clk 0:01:27]} 39. Ra8 {[%clk 0:01:12]}  Kf8 {[%clk 0:01:14]} 40. Kh2 {[%clk 0:01:00]}  Rxd4 {[%clk 0:01:14]} 41. Kg3 {[%clk 0:01:01]}  Ra4 {[%clk 0:01:12]} 42. h5 {[%clk 0:01:00]}  Ra3+ {[%clk 0:01:04]} 43. Kf4 {[%clk 0:01:00]}  Rxa2 {[%clk 0:00:55]} 44. Ke5 {[%clk 0:00:52]}  Ke7 {[%clk 0:00:48]} 45. Ng8+ {[%clk 0:00:49]}  Kf8 {[%clk 0:00:47]} 46. Nf6 {[%clk 0:00:40]}  Re2+ {[%clk 0:00:47]} 47. Kd6 {[%clk 0:00:40]} 1-0


[Site "https://www.chess.com"]

[Event "Titled Tuesday Blitz March 14 Early 2023"]
[White "Ginzburg, Yakov"]
[Black "Cornette, Matthieu"]
[WhiteFideId "4157176"]
[BlackFideId "620084"]
[WhiteElo "2305"]
[BlackElo "2478"]
[Result "0-1"]
[Round "10"]
[TimeControl "180+2"]
[Date "2023.03.14"]
[WhiteClock "0:00:02"]
[BlackClock "0:00:27"]

1. e4 {[%clk 0:02:59]}  Nf6 {[%clk 0:03:00]} 2. e5 {[%clk 0:02:59]}  Nd5 {[%clk 0:03:00]} 3. c4 {[%clk 0:02:58]}  Nb6 {[%clk 0:02:59]} 4. c5 {[%clk 0:02:59]}  Nd5 {[%clk 0:03:00]} 5. Nc3 {[%clk 0:02:59]}  e6 {[%clk 0:02:56]} 6. d4 {[%clk 0:02:58]}  d6 {[%clk 0:02:49]} 7. Nxd5 {[%clk 0:02:58]}  exd5 {[%clk 0:02:50]} 8. cxd6 {[%clk 0:02:58]}  cxd6 {[%clk 0:02:50]} 9. Nf3 {[%clk 0:02:58]}  Nc6 {[%clk 0:02:50]} 10. Be2 {[%clk 0:02:58]}  dxe5 {[%clk 0:02:48]} 11. dxe5 {[%clk 0:02:58]}  Be7 {[%clk 0:02:47]} 12. O-O {[%clk 0:02:58]}  Be6 {[%clk 0:02:47]} 13. Bf4 {[%clk 0:02:58]}  O-O {[%clk 0:02:48]} 14. Qd2 {[%clk 0:02:39]}  Qb6 {[%clk 0:02:46]} 15. Be3 {[%clk 0:02:32]}  Qb4 {[%clk 0:02:37]} 16. Qxb4 {[%clk 0:02:26]}  Bxb4 {[%clk 0:02:38]} 17. Rfd1 {[%clk 0:02:18]}  Rfd8 {[%clk 0:02:37]} 18. Rac1 {[%clk 0:02:09]}  h6 {[%clk 0:02:34]} 19. a3 {[%clk 0:02:04]}  Ba5 {[%clk 0:02:31]} 20. Bb5 {[%clk 0:01:54]}  Rdc8 {[%clk 0:01:59]} 21. Bxc6 {[%clk 0:00:48]}  bxc6 {[%clk 0:01:57]} 22. Nd4 {[%clk 0:00:47]}  Bd7 {[%clk 0:01:29]} 23. f4 {[%clk 0:00:47]}  Bb6 {[%clk 0:01:26]} 24. Nc2 {[%clk 0:00:14]}  Bg4 {[%clk 0:01:20]} 25. Rd2 {[%clk 0:00:14]}  Bf5 {[%clk 0:01:15]} 26. Kf2 {[%clk 0:00:13]}  Be4 {[%clk 0:01:08]} 27. Nb4 {[%clk 0:00:11]}  d4 {[%clk 0:00:45]} 28. Rxd4 {[%clk 0:00:05]}  Bxd4 {[%clk 0:00:42]} 29. Bxd4 {[%clk 0:00:06]}  a5 {[%clk 0:00:41]} 30. Na2 {[%clk 0:00:03]}  Rab8 {[%clk 0:00:41]} 31. Ke3 {[%clk 0:00:03]}  Bxg2 {[%clk 0:00:40]} 32. Rg1 {[%clk 0:00:03]}  Bd5 {[%clk 0:00:39]} 33. Nc3 {[%clk 0:00:03]}  Rxb2 {[%clk 0:00:31]} 34. Nxd5 {[%clk 0:00:03]}  Rb3+ {[%clk 0:00:32]} 35. Nc3 {[%clk 0:00:02]}  c5 {[%clk 0:00:32]} 36. Ke4 {[%clk 0:00:01]}  cxd4 {[%clk 0:00:31]} 37. Nd5 {[%clk 0:00:02]}  Rc2 {[%clk 0:00:28]} 38. f5 {[%clk 0:00:02]}  d3 {[%clk 0:00:27]} 0-1


[Site "https://www.chess.com"]

[Event "Titled Tuesday Blitz March 14 Early 2023"]
[White "Postny, Evgeny"]
[Black "Buksa, Nataliya"]
[WhiteFideId "2804344"]
[BlackFideId "14123622"]
[WhiteElo "2509"]
[BlackElo "2316"]
[Result "1-0"]
[Round "10"]
[TimeControl "180+2"]
[Date "2023.03.14"]
[WhiteClock "0:00:30"]
[BlackClock "0:00:15"]

1. Nf3 {[%clk 0:03:00]}  d5 {[%clk 0:03:00]} 2. c4 {[%clk 0:03:01]}  e6 {[%clk 0:03:00]} 3. g3 {[%clk 0:03:01]}  Nf6 {[%clk 0:03:00]} 4. Bg2 {[%clk 0:03:01]}  Be7 {[%clk 0:03:00]} 5. O-O {[%clk 0:03:02]}  O-O {[%clk 0:03:01]} 6. b3 {[%clk 0:03:02]}  d4 {[%clk 0:02:59]} 7. Bb2 {[%clk 0:03:03]}  c5 {[%clk 0:03:00]} 8. e3 {[%clk 0:03:03]}  Nc6 {[%clk 0:02:56]} 9. exd4 {[%clk 0:03:03]}  cxd4 {[%clk 0:02:56]} 10. d3 {[%clk 0:03:03]}  a5 {[%clk 0:02:56]} 11. Na3 {[%clk 0:03:03]}  e5 {[%clk 0:02:43]} 12. Re1 {[%clk 0:03:02]}  Nd7 {[%clk 0:02:43]} 13. Nb5 {[%clk 0:03:00]}  Ra6 {[%clk 0:02:42]} 14. Nd2 {[%clk 0:02:53]}  Nc5 {[%clk 0:02:34]} 15. Ne4 {[%clk 0:02:48]}  Nxe4 {[%clk 0:02:31]} 16. Bxe4 {[%clk 0:02:49]}  f5 {[%clk 0:02:29]} 17. Bd5+ {[%clk 0:02:45]}  Kh8 {[%clk 0:02:28]} 18. f4 {[%clk 0:02:43]}  exf4 {[%clk 0:02:17]} 19. gxf4 {[%clk 0:02:32]}  Nb4 {[%clk 0:02:10]} 20. Bf3 {[%clk 0:02:22]}  Rg6+ {[%clk 0:01:31]} 21. Kh1 {[%clk 0:02:22]}  Bc5 {[%clk 0:01:27]} 22. a3 {[%clk 0:02:04]}  Nc6 {[%clk 0:01:21]} 23. Rg1 {[%clk 0:02:04]}  Qh4 {[%clk 0:01:14]} 24. Rxg6 {[%clk 0:01:58]}  hxg6 {[%clk 0:01:15]} 25. Qg1 {[%clk 0:01:46]}  Qxf4 {[%clk 0:01:05]} 26. Rf1 {[%clk 0:01:46]}  Qh6 {[%clk 0:01:02]} 27. b4 {[%clk 0:01:27]}  axb4 {[%clk 0:00:53]} 28. axb4 {[%clk 0:01:27]}  Nxb4 {[%clk 0:00:52]} 29. Bxd4 {[%clk 0:01:27]}  Bxd4 {[%clk 0:00:43]} 30. Qxd4 {[%clk 0:01:26]}  Nc2 {[%clk 0:00:39]} 31. Qc5 {[%clk 0:01:12]}  Re8 {[%clk 0:00:34]} 32. Nd6 {[%clk 0:01:10]}  b6 {[%clk 0:00:24]} 33. Qf2 {[%clk 0:00:55]}  Qe3 {[%clk 0:00:20]} 34. Nxe8 {[%clk 0:00:46]}  Qxe8 {[%clk 0:00:17]} 35. Qxc2 {[%clk 0:00:44]}  Bd7 {[%clk 0:00:18]} 36. Qe2 {[%clk 0:00:40]}  Qc8 {[%clk 0:00:17]} 37. Qg2 {[%clk 0:00:39]}  Qe8 {[%clk 0:00:15]} 38. Qh3+ {[%clk 0:00:36]}  Kg8 {[%clk 0:00:15]} 39. Bd5+ {[%clk 0:00:36]}  Be6 {[%clk 0:00:15]} 40. Bxe6+ {[%clk 0:00:31]}  Qxe6 {[%clk 0:00:15]} 41. Qf3 {[%clk 0:00:31]}  g5 {[%clk 0:00:15]} 42. Qd5 {[%clk 0:00:31]}  Kf7 {[%clk 0:00:15]} 43. Rxf5+ {[%clk 0:00:30]} 1-0


[Site "https://www.chess.com"]

[Event "Titled Tuesday Blitz March 14 Early 2023"]
[White "Jaskolka, Tomasz"]
[Black "Aradhya, Garg"]
[WhiteFideId "1170791"]
[BlackFideId "25006746"]
[WhiteElo "2155"]
[BlackElo "2263"]
[Result "0-1"]
[Round "10"]
[TimeControl "180+2"]
[Date "2023.03.14"]
[WhiteClock "0:00:07"]
[BlackClock "0:00:21"]

1. d4 {[%clk 0:03:00]}  d5 {[%clk 0:02:59]} 2. Bf4 {[%clk 0:03:00]}  Nf6 {[%clk 0:02:58]} 3. e3 {[%clk 0:02:59]}  c5 {[%clk 0:02:57]} 4. c3 {[%clk 0:02:59]}  Nc6 {[%clk 0:02:57]} 5. Nd2 {[%clk 0:02:59]}  Bf5 {[%clk 0:02:56]} 6. Ngf3 {[%clk 0:02:59]}  Qb6 {[%clk 0:02:54]} 7. Qb3 {[%clk 0:02:59]}  c4 {[%clk 0:02:53]} 8. Qxb6 {[%clk 0:02:59]}  axb6 {[%clk 0:02:54]} 9. Be2 {[%clk 0:02:55]}  h6 {[%clk 0:02:52]} 10. O-O {[%clk 0:02:55]}  e6 {[%clk 0:02:52]} 11. b3 {[%clk 0:02:42]}  b5 {[%clk 0:02:52]} 12. a4 {[%clk 0:02:43]}  b4 {[%clk 0:02:52]} 13. bxc4 {[%clk 0:02:24]}  bxc3 {[%clk 0:02:51]} 14. Nb1 {[%clk 0:02:01]}  Bb4 {[%clk 0:02:43]} 15. Na3 {[%clk 0:01:27]}  Rxa4 {[%clk 0:02:39]} 16. Nb5 {[%clk 0:01:28]}  Rxa1 {[%clk 0:02:39]} 17. Rxa1 {[%clk 0:01:17]}  O-O {[%clk 0:02:08]} 18. Bd6 {[%clk 0:01:15]}  Rd8 {[%clk 0:02:02]} 19. Bxb4 {[%clk 0:01:10]}  Nxb4 {[%clk 0:02:03]} 20. Ne1 {[%clk 0:01:04]}  dxc4 {[%clk 0:01:37]} 21. Nxc3 {[%clk 0:00:58]}  Nfd5 {[%clk 0:01:33]} 22. Nb5 {[%clk 0:00:33]}  c3 {[%clk 0:01:29]} 23. f3 {[%clk 0:00:28]}  Nxe3 {[%clk 0:01:28]} 24. Nxc3 {[%clk 0:00:27]}  Nbc2 {[%clk 0:01:20]} 25. Nxc2 {[%clk 0:00:22]}  Nxc2 {[%clk 0:01:20]} 26. Ra7 {[%clk 0:00:20]}  Rb8 {[%clk 0:01:17]} 27. Nb5 {[%clk 0:00:19]}  Bg6 {[%clk 0:01:09]} 28. Kf2 {[%clk 0:00:19]}  Nb4 {[%clk 0:01:09]} 29. Ke3 {[%clk 0:00:17]}  Nc6 {[%clk 0:01:08]} 30. Ra1 {[%clk 0:00:15]}  Kf8 {[%clk 0:01:08]} 31. Rc1 {[%clk 0:00:10]}  Ke7 {[%clk 0:01:08]} 32. f4 {[%clk 0:00:11]}  Ra8 {[%clk 0:01:07]} 33. Bf3 {[%clk 0:00:10]}  Ra3+ {[%clk 0:01:06]} 34. Kf2 {[%clk 0:00:10]}  Ra2+ {[%clk 0:01:01]} 35. Ke3 {[%clk 0:00:10]}  Rb2 {[%clk 0:00:57]} 36. Nc3 {[%clk 0:00:05]}  Nb4 {[%clk 0:00:52]} 37. Be4 {[%clk 0:00:04]}  Bxe4 {[%clk 0:00:49]} 38. Nxe4 {[%clk 0:00:05]}  Nd5+ {[%clk 0:00:48]} 39. Kf3 {[%clk 0:00:05]}  Rb3+ {[%clk 0:00:48]} 40. Kf2 {[%clk 0:00:05]}  Rb4 {[%clk 0:00:35]} 41. g3 {[%clk 0:00:04]}  Rxd4 {[%clk 0:00:35]} 42. Kf3 {[%clk 0:00:04]}  Rd3+ {[%clk 0:00:32]} 43. Kf2 {[%clk 0:00:05]}  b5 {[%clk 0:00:32]} 44. Rc5 {[%clk 0:00:03]}  b4 {[%clk 0:00:31]} 45. Rb5 {[%clk 0:00:04]}  Nf6 {[%clk 0:00:20]} 46. Rb7+ {[%clk 0:00:04]}  Rd7 {[%clk 0:00:18]} 47. Rxd7+ {[%clk 0:00:04]}  Nxd7 {[%clk 0:00:17]} 48. Ke3 {[%clk 0:00:04]}  Nb6 {[%clk 0:00:17]} 49. Kd4 {[%clk 0:00:05]}  Nd5 {[%clk 0:00:17]} 50. Kc5 {[%clk 0:00:05]}  b3 {[%clk 0:00:16]} 51. Nd2 {[%clk 0:00:04]}  b2 {[%clk 0:00:16]} 52. Kc4 {[%clk 0:00:04]}  Ne3+ {[%clk 0:00:16]} 53. Kb3 {[%clk 0:00:05]}  Nf1 {[%clk 0:00:16]} 54. Nb1 {[%clk 0:00:02]}  Nxh2 {[%clk 0:00:16]} 55. Kxb2 {[%clk 0:00:02]}  Nf1 {[%clk 0:00:17]} 56. g4 {[%clk 0:00:03]}  Ne3 {[%clk 0:00:17]} 57. g5 {[%clk 0:00:03]}  h5 {[%clk 0:00:17]} 58. Nd2 {[%clk 0:00:03]}  h4 {[%clk 0:00:18]} 59. Nf3 {[%clk 0:00:04]}  h3 {[%clk 0:00:18]} 60. Kc3 {[%clk 0:00:05]}  Ng4 {[%clk 0:00:18]} 61. Ne5 {[%clk 0:00:01]}  Nxe5 {[%clk 0:00:17]} 62. fxe5 {[%clk 0:00:01]}  h2 {[%clk 0:00:18]} 63. Kd4 {[%clk 0:00:02]}  h1=Q {[%clk 0:00:16]} 64. Ke3 {[%clk 0:00:02]}  Qd5 {[%clk 0:00:17]} 65. Kf4 {[%clk 0:00:03]}  g6 {[%clk 0:00:17]} 66. Kg3 {[%clk 0:00:03]}  Qxe5+ {[%clk 0:00:18]} 67. Kg4 {[%clk 0:00:04]}  Qf5+ {[%clk 0:00:18]} 68. Kh4 {[%clk 0:00:05]}  e5 {[%clk 0:00:19]} 69. Kg3 {[%clk 0:00:05]}  e4 {[%clk 0:00:20]} 70. Kh4 {[%clk 0:00:05]}  e3 {[%clk 0:00:21]} 71. Kg3 {[%clk 0:00:05]}  e2 {[%clk 0:00:21]} 72. Kg2 {[%clk 0:00:06]}  e1=Q {[%clk 0:00:21]} 73. Kh2 {[%clk 0:00:06]}  Qff2+ {[%clk 0:00:21]} 74. Kh3 {[%clk 0:00:07]}  Qg3# {[%clk 0:00:21]} 0-1


[Site "https://www.chess.com"]

[Event "Titled Tuesday Blitz March 14 Early 2023"]
[White "Demin, Vladimir"]
[Black "Turzo, Attila"]
[WhiteFideId "4167457"]
[BlackFideId "704954"]
[WhiteElo "2619"]
[BlackElo "2521"]
[Result "1-0"]
[Round "10"]
[TimeControl "180+2"]
[Date "2023.03.14"]
[WhiteClock "0:00:08"]
[BlackClock "0:00:04"]

1. e4 {[%clk 0:03:00]}  c5 {[%clk 0:03:00]} 2. Nf3 {[%clk 0:02:59]}  Nc6 {[%clk 0:03:00]} 3. c3 {[%clk 0:02:57]}  Nf6 {[%clk 0:02:47]} 4. e5 {[%clk 0:02:57]}  Nd5 {[%clk 0:02:48]} 5. d4 {[%clk 0:02:58]}  cxd4 {[%clk 0:02:47]} 6. cxd4 {[%clk 0:02:59]}  d6 {[%clk 0:02:47]} 7. Bc4 {[%clk 0:02:57]}  Nb6 {[%clk 0:02:42]} 8. Bb5 {[%clk 0:02:57]}  dxe5 {[%clk 0:02:41]} 9. Nxe5 {[%clk 0:02:56]}  Bd7 {[%clk 0:02:42]} 10. Nc3 {[%clk 0:02:54]}  Nxe5 {[%clk 0:02:31]} 11. dxe5 {[%clk 0:02:55]}  Bxb5 {[%clk 0:02:31]} 12. Nxb5 {[%clk 0:02:56]}  Qxd1+ {[%clk 0:02:31]} 13. Kxd1 {[%clk 0:02:57]}  O-O-O+ {[%clk 0:02:29]} 14. Ke2 {[%clk 0:02:57]}  a6 {[%clk 0:02:28]} 15. Be3 {[%clk 0:02:23]}  Nd5 {[%clk 0:02:08]} 16. Rac1+ {[%clk 0:01:52]}  Kb8 {[%clk 0:02:07]} 17. Nc3 {[%clk 0:01:18]}  Nxe3 {[%clk 0:01:59]} 18. Kxe3 {[%clk 0:01:19]}  e6 {[%clk 0:01:55]} 19. Ne4 {[%clk 0:01:20]}  Be7 {[%clk 0:01:50]} 20. Rhd1 {[%clk 0:01:17]}  f5 {[%clk 0:01:32]} 21. Nd6 {[%clk 0:00:57]}  Rd7 {[%clk 0:01:23]} 22. Rd3 {[%clk 0:00:39]}  Rhd8 {[%clk 0:01:14]} 23. Rcd1 {[%clk 0:00:38]}  Kc7 {[%clk 0:01:05]} 24. Rc3+ {[%clk 0:00:27]}  Kb8 {[%clk 0:01:02]} 25. Rcd3 {[%clk 0:00:22]}  g5 {[%clk 0:01:01]} 26. f4 {[%clk 0:00:19]}  gxf4+ {[%clk 0:00:42]} 27. Kxf4 {[%clk 0:00:20]}  h5 {[%clk 0:00:37]} 28. g3 {[%clk 0:00:17]}  Ka8 {[%clk 0:00:30]} 29. a4 {[%clk 0:00:10]}  Kb8 {[%clk 0:00:24]} 30. b4 {[%clk 0:00:09]}  Ka8 {[%clk 0:00:24]} 31. b5 {[%clk 0:00:09]}  axb5 {[%clk 0:00:21]} 32. axb5 {[%clk 0:00:10]}  Kb8 {[%clk 0:00:22]} 33. b6 {[%clk 0:00:10]}  Rg8 {[%clk 0:00:18]} 34. Kf3 {[%clk 0:00:07]}  Rgd8 {[%clk 0:00:16]} 35. Kf4 {[%clk 0:00:06]}  h4 {[%clk 0:00:14]} 36. gxh4 {[%clk 0:00:06]}  Bxh4 {[%clk 0:00:13]} 37. Rh3 {[%clk 0:00:06]}  Be7 {[%clk 0:00:12]} 38. Rh6 {[%clk 0:00:05]}  Bxd6 {[%clk 0:00:12]} 39. exd6 {[%clk 0:00:05]}  Rxd6 {[%clk 0:00:13]} 40. Rxd6 {[%clk 0:00:05]}  e5+ {[%clk 0:00:10]} 41. Kxe5 {[%clk 0:00:05]}  Re8+ {[%clk 0:00:10]} 42. Kxf5 {[%clk 0:00:05]}  Rf8+ {[%clk 0:00:09]} 43. Rdf6 {[%clk 0:00:05]}  Re8 {[%clk 0:00:09]} 44. Rh7 {[%clk 0:00:05]}  Rd8 {[%clk 0:00:09]} 45. Rff7 {[%clk 0:00:06]}  Rd5+ {[%clk 0:00:09]} 46. Ke6 {[%clk 0:00:06]}  Rd8 {[%clk 0:00:10]} 47. Rxb7+ {[%clk 0:00:05]}  Ka8 {[%clk 0:00:10]} 48. Ra7+ {[%clk 0:00:06]}  Kb8 {[%clk 0:00:11]} 49. Rhb7+ {[%clk 0:00:06]}  Kc8 {[%clk 0:00:11]} 50. Re7 {[%clk 0:00:06]}  Kb8 {[%clk 0:00:10]} 51. h4 {[%clk 0:00:06]}  Rh8 {[%clk 0:00:09]} 52. h5 {[%clk 0:00:06]}  Rh6+ {[%clk 0:00:09]} 53. Kf7 {[%clk 0:00:06]}  Rxb6 {[%clk 0:00:09]} 54. Rad7 {[%clk 0:00:05]}  Kc8 {[%clk 0:00:09]} 55. Kg7 {[%clk 0:00:05]}  Rb1 {[%clk 0:00:07]} 56. Rf7 {[%clk 0:00:05]}  Rg1+ {[%clk 0:00:07]} 57. Kh7 {[%clk 0:00:05]}  Rg2 {[%clk 0:00:06]} 58. h6 {[%clk 0:00:06]}  Rg1 {[%clk 0:00:06]} 59. Rde7 {[%clk 0:00:06]}  Kd8 {[%clk 0:00:06]} 60. Ra7 {[%clk 0:00:06]}  Ke8 {[%clk 0:00:06]} 61. Rg7 {[%clk 0:00:07]}  Rxg7+ {[%clk 0:00:04]} 62. hxg7 {[%clk 0:00:08]} 1-0


[Site "https://www.chess.com"]

[Event "Titled Tuesday Blitz March 14 Early 2023"]
[White "TimGrutter03"]
[Black "Sokac, Marko"]
[BlackFideId "14531356"]
[WhiteElo "2493"]
[BlackElo "2355"]
[Result "0-1"]
[Round "10"]
[TimeControl "180+2"]
[Date "2023.03.14"]
[WhiteClock "0:00:03"]
[BlackClock "0:00:37"]

1. e4 {[%clk 0:02:59]}  d6 {[%clk 0:03:00]} 2. d4 {[%clk 0:02:58]}  Nf6 {[%clk 0:03:00]} 3. Nc3 {[%clk 0:02:58]}  c6 {[%clk 0:03:01]} 4. g3 {[%clk 0:02:56]}  Nbd7 {[%clk 0:03:00]} 5. Bg2 {[%clk 0:02:56]}  e5 {[%clk 0:03:01]} 6. Nge2 {[%clk 0:02:56]}  Be7 {[%clk 0:03:01]} 7. a4 {[%clk 0:02:55]}  b6 {[%clk 0:03:01]} 8. O-O {[%clk 0:02:52]}  Bb7 {[%clk 0:03:01]} 9. h3 {[%clk 0:02:51]}  a6 {[%clk 0:03:01]} 10. f4 {[%clk 0:02:49]}  b5 {[%clk 0:03:01]} 11. Qe1 {[%clk 0:02:25]}  b4 {[%clk 0:02:56]} 12. Nd1 {[%clk 0:02:25]}  a5 {[%clk 0:02:57]} 13. c3 {[%clk 0:02:21]}  exd4 {[%clk 0:02:51]} 14. Nxd4 {[%clk 0:02:16]}  O-O {[%clk 0:02:40]} 15. e5 {[%clk 0:02:12]}  Nd5 {[%clk 0:02:29]} 16. e6 {[%clk 0:01:55]}  N7f6 {[%clk 0:02:25]} 17. exf7+ {[%clk 0:01:54]}  Rxf7 {[%clk 0:02:26]} 18. Ne6 {[%clk 0:01:54]}  Qb6+ {[%clk 0:02:24]} 19. Kh2 {[%clk 0:01:47]}  Re8 {[%clk 0:02:21]} 20. c4 {[%clk 0:01:43]}  Nc7 {[%clk 0:02:21]} 21. Be3 {[%clk 0:01:42]}  c5 {[%clk 0:02:21]} 22. Ng5 {[%clk 0:01:39]}  Rff8 {[%clk 0:02:16]} 23. Bxb7 {[%clk 0:01:33]}  Qxb7 {[%clk 0:02:16]} 24. Qf2 {[%clk 0:01:32]}  h6 {[%clk 0:02:10]} 25. Nf3 {[%clk 0:01:31]}  d5 {[%clk 0:02:05]} 26. Ne5 {[%clk 0:01:13]}  d4 {[%clk 0:02:00]} 27. Bd2 {[%clk 0:01:11]}  Bd6 {[%clk 0:01:50]} 28. Ng6 {[%clk 0:00:59]}  Rf7 {[%clk 0:01:50]} 29. Qg2 {[%clk 0:00:59]}  Qxg2+ {[%clk 0:01:44]} 30. Kxg2 {[%clk 0:01:00]}  Re2+ {[%clk 0:01:45]} 31. Rf2 {[%clk 0:01:00]}  Rxf2+ {[%clk 0:01:45]} 32. Nxf2 {[%clk 0:00:58]}  Kh7 {[%clk 0:01:42]} 33. Nh4 {[%clk 0:00:55]}  g6 {[%clk 0:01:17]} 34. Re1 {[%clk 0:00:50]}  Re7 {[%clk 0:01:17]} 35. Rxe7+ {[%clk 0:00:39]}  Bxe7 {[%clk 0:01:18]} 36. b3 {[%clk 0:00:38]}  Nce8 {[%clk 0:01:15]} 37. Nf3 {[%clk 0:00:37]}  Nd6 {[%clk 0:01:15]} 38. Ne5 {[%clk 0:00:38]}  Nde4 {[%clk 0:01:14]} 39. Nxe4 {[%clk 0:00:29]}  Nxe4 {[%clk 0:01:15]} 40. Be1 {[%clk 0:00:29]}  Bd6 {[%clk 0:01:11]} 41. Kf3 {[%clk 0:00:26]}  Nc3 {[%clk 0:01:11]} 42. Bxc3 {[%clk 0:00:19]}  bxc3 {[%clk 0:01:08]} 43. Nd3 {[%clk 0:00:19]}  Kg7 {[%clk 0:01:07]} 44. g4 {[%clk 0:00:18]}  Kf6 {[%clk 0:01:07]} 45. h4 {[%clk 0:00:18]}  g5 {[%clk 0:01:06]} 46. hxg5+ {[%clk 0:00:10]}  hxg5 {[%clk 0:01:07]} 47. fxg5+ {[%clk 0:00:11]}  Kxg5 {[%clk 0:01:07]} 48. Ke4 {[%clk 0:00:12]}  c2 {[%clk 0:01:01]} 49. Kd5 {[%clk 0:00:11]}  Be7 {[%clk 0:00:49]} 50. Ke6 {[%clk 0:00:09]}  Bf8 {[%clk 0:00:49]} 51. Kf7 {[%clk 0:00:03]}  Bh6 {[%clk 0:00:47]} 52. b4 {[%clk 0:00:02]}  cxb4 {[%clk 0:00:44]} 53. c5 {[%clk 0:00:03]}  Kxg4 {[%clk 0:00:43]} 54. c6 {[%clk 0:00:03]}  Bf4 {[%clk 0:00:44]} 55. Ke6 {[%clk 0:00:02]}  b3 {[%clk 0:00:40]} 56. Nf2+ {[%clk 0:00:01]}  Kf3 {[%clk 0:00:40]} 57. Nd3 {[%clk 0:00:01]}  b2 {[%clk 0:00:39]} 58. Ne1+ {[%clk 0:00:02]}  Kg4 {[%clk 0:00:37]} 59. Nxc2 {[%clk 0:00:02]}  b1=Q {[%clk 0:00:37]} 60. Nxd4 {[%clk 0:00:03]}  Qe4+ {[%clk 0:00:37]} 0-1


[Site "https://www.chess.com"]